bitfinex-derivatives/quotes_BNBF0:USTF0_20251225
["timestamp","ask_amount","ask_price","bid_price","bid_amount"]
[1766674679747,1.19403265,838.14,837.43,1.19072198]
[1766674679948,1.19403265,838.13,837.43,1.19072198]
[1766674680245,1.19403265,838.12,837.43,1.19072198]
[1766674680445,1.19403265,838.11,837.43,1.19072198]
[1766674680645,8.84857631,838.15,837.43,1.19072198]
[1766674680845,1.19403265,838.14,837.43,1.19072198]
[1766674681044,1.19403265,838.13,837.43,1.19072198]
[1766674681249,1.19403265,838.12,837.43,1.19072198]
[1766674681448,1.19403265,838.11,837.43,1.19072198]
[1766674681748,0.20764776,838.2,837.43,1.19072198]
[1766674681943,1.19403265,838.19,837.43,1.19072198]
[1766674682145,1.19403265,838.18,837.43,1.19072198]
[1766674682447,1.19403265,838.17,837.43,1.19072198]
[1766674682642,1.19403265,838.16,837.43,1.19072198]
[1766674682848,1.19403265,838.15,837.43,1.19072198]
[1766674683048,1.19403265,838.14,837.43,1.19072198]
[1766674683248,1.19403265,838.13,837.43,1.19072198]
[1766674683448,1.19403265,838.12,837.43,1.19072198]
[1766674683748,1.19403265,838.11,837.43,1.19072198]
[1766674684044,1.19403265,838.1,837.43,1.19072198]
[1766674684249,0.20764776,838.2,837.43,1.19072198]
[1766674684442,1.19403277,838.19,837.43,1.19072198]
[1766674684647,1.19403277,838.18,837.43,1.19072198]
[1766674684844,1.19403277,838.17,837.43,1.19072198]
[1766674685048,1.19403277,838.16,837.43,1.19072198]
[1766674685249,1.19403277,838.15,837.43,1.19072198]
[1766674685449,1.19403277,838.14,837.43,1.19072198]
[1766674685652,1.19403277,838.13,837.43,1.19072198]
[1766674685848,1.19403277,838.12,837.43,1.19072198]
[1766674686053,1.19403277,838.11,837.43,1.19072198]
[1766674686252,1.19403277,838.1,837.43,1.19072198]
[1766674686450,9.05134628,838.1,837.43,1.19072198]
[1766674692459,0.20764776,838.2,837.43,1.19072198]
[1766674692759,1.1940316,838.19,837.43,1.19072198]
[1766674692956,1.1940316,838.18,837.43,1.19072198]
[1766674693258,1.1940316,838.17,837.43,1.19072198]
[1766674693457,1.1940316,838.16,837.43,1.19072198]
[1766674693756,1.1940316,838.15,837.43,1.19072198]
[1766674693960,1.1940316,838.14,837.43,1.19072198]
[1766674694161,1.1940316,838.13,837.43,1.19072198]
[1766674694362,1.1940316,838.12,837.43,1.19072198]
[1766674694556,1.1940316,838.11,837.43,1.19072198]
[1766674694759,0.20764776,838.2,837.43,1.19072198]
[1766674695058,1.19403149,838.19,837.43,1.19072198]
[1766674695358,1.19403149,838.18,837.43,1.19072198]
[1766674695557,1.19403149,838.17,837.43,1.19072198]
[1766674695758,10.27885295,838.16,837.43,1.19072198]
[1766674695961,1.19403149,838.15,837.43,1.19072198]
[1766674696161,1.19403149,838.14,837.43,1.19072198]
[1766674696362,1.19403149,838.13,837.43,1.19072198]
[1766674696658,1.19403149,838.12,837.43,1.19072198]
[1766674696860,1.19403149,838.11,837.43,1.19072198]
[1766674697059,9.08482146,838.16,837.43,1.19072198]
[1766674697256,1.19403149,838.15,837.43,1.19072198]
[1766674697462,1.19403149,838.14,837.43,1.19072198]
[1766674697662,1.19403149,838.13,837.43,1.19072198]
[1766674697863,1.19403149,838.12,837.43,1.19072198]
[1766674698062,1.19403149,838.11,837.43,1.19072198]
[1766674698263,9.08482146,838.16,837.43,1.19072198]
[1766674698464,1.19403149,838.15,837.43,1.19072198]
[1766674698664,1.19403149,838.14,837.43,1.19072198]
[1766674698862,1.19403149,838.13,837.43,1.19072198]
[1766674699065,1.19403149,838.12,837.43,1.19072198]
[1766674699264,1.19403149,838.11,837.43,1.19072198]
[1766674699464,0.20764776,838.2,837.43,1.19072198]
[1766674699765,1.19403149,838.19,837.43,1.19072198]
[1766674699963,0.20764776,838.2,837.43,1.19072198]
[1766674699964,1.19403149,838.18,837.43,1.19072198]
[1766674700162,1.19403149,838.17,837.43,1.19072198]
[1766674700365,1.19403149,838.16,837.43,1.19072198]
[1766674700665,1.19403149,838.15,837.43,1.19072198]
[1766674700863,1.19403149,838.14,837.43,1.19072198]
[1766674701165,1.19403149,838.13,837.43,1.19072198]
[1766674701362,1.19403149,838.12,837.43,1.19072198]
[1766674701565,1.19403149,838.11,837.43,1.19072198]
[1766674701763,0.20764776,838.2,837.43,1.19072198]
[1766674701968,1.19403149,838.19,837.43,1.19072198]
[1766674702267,1.19403149,838.18,837.43,1.19072198]
[1766674702467,1.19403149,838.17,837.43,1.19072198]
[1766674702764,1.19403149,838.16,837.43,1.19072198]
[1766674702962,1.19403149,838.15,837.43,1.19072198]
[1766674703167,1.19403149,838.14,837.43,1.19072198]
[1766674703366,1.19403149,838.13,837.43,1.19072198]
[1766674703566,1.19403149,838.12,837.43,1.19072198]
[1766674703863,1.19403149,838.11,837.43,1.19072198]
[1766674704069,0.20764776,838.2,837.43,1.19072198]
[1766674704268,1.19403149,838.19,837.43,1.19072198]
[1766674704564,1.19403149,838.18,837.43,1.19072198]
[1766674704867,1.19403149,838.17,837.43,1.19072198]
[1766674705068,1.19403149,838.16,837.43,1.19072198]
[1766674705263,1.19403149,838.15,837.43,1.19072198]
[1766674705468,1.19403149,838.14,837.43,1.19072198]
[1766674705668,1.19403149,838.13,837.43,1.19072198]
[1766674705964,1.19403149,838.12,837.43,1.19072198]
[1766674706164,1.19403149,838.11,837.43,1.19072198]
[1766674706362,0.20764776,838.2,837.43,1.19072198]
[1766674706569,1.19403149,838.19,837.43,1.19072198]
[1766674706767,1.19403149,838.18,837.43,1.19072198]
[1766674706965,1.19403149,838.17,837.43,1.19072198]
[1766674707164,1.19403149,838.16,837.43,1.19072198]
[1766674707363,1.19403149,838.15,837.43,1.19072198]
[1766674707668,1.19403149,838.14,837.43,1.19072198]
[1766674707869,1.19403149,838.13,837.43,1.19072198]
[1766674708069,1.19403149,838.12,837.43,1.19072198]
[1766674708264,1.19403149,838.11,837.43,1.19072198]
[1766674708469,0.20764776,838.2,837.43,1.19072198]
[1766674708766,1.19403149,838.19,837.43,1.19072198]
[1766674708965,1.19403149,838.18,837.43,1.19072198]
[1766674709167,1.19403149,838.17,837.43,1.19072198]
[1766674709367,1.19403149,838.16,837.43,1.19072198]
[1766674709567,1.19403149,838.15,837.43,1.19072198]
[1766674709771,1.19403149,838.14,837.43,1.19072198]
[1766674709972,1.19403149,838.13,837.43,1.19072198]
[1766674710172,1.19403149,838.12,837.43,1.19072198]
[1766674710372,1.19403149,838.11,837.43,1.19072198]
[1766674710574,0.20764776,838.2,837.43,1.19072198]
[1766674710771,1.19403149,838.19,837.43,1.19072198]
[1766674711073,1.19403149,838.18,837.43,1.19072198]
[1766674711270,1.19403149,838.17,837.43,1.19072198]
[1766674711571,1.19403149,838.16,837.43,1.19072198]
[1766674711770,10.30131939,838.15,837.43,1.19072198]
[1766674711974,1.19403149,838.14,837.43,1.19072198]
[1766674712168,9.1072879,838.15,837.43,1.19072198]
[1766674712169,1.19403149,838.13,837.43,1.19072198]
[1766674712371,1.19403149,838.12,837.43,1.19072198]
[1766674712568,1.19403149,838.11,837.43,1.19072198]
[1766674712770,9.1072879,838.15,837.43,1.19072198]
[1766674712975,1.19403149,838.14,837.43,1.19072198]
[1766674713273,1.19403149,838.13,837.43,1.19072198]
[1766674713471,1.19403149,838.12,837.43,1.19072198]
[1766674713674,1.19403149,838.11,837.43,1.19072198]
[1766674713872,9.1072879,838.15,837.43,1.19072198]
[1766674714074,1.19403149,838.14,837.43,1.19072198]
[1766674714273,1.19403149,838.13,837.43,1.19072198]
[1766674714471,1.19403149,838.12,837.43,1.19072198]
[1766674714675,1.19403149,838.11,837.43,1.19072198]
[1766674714874,9.1072879,838.15,837.43,1.19072198]
[1766674715078,1.19403154,838.14,837.43,1.19072198]
[1766674715278,1.19403154,838.13,837.43,1.19072198]
[1766674715478,1.19403154,838.12,837.43,1.19072198]
[1766674715676,1.19403154,838.11,837.43,1.19072198]
[1766674715876,0.20764776,838.2,837.43,1.19072198]
[1766674716075,1.19403154,838.19,837.43,1.19072198]
[1766674716280,1.19403154,838.18,837.43,1.19072198]
[1766674716581,1.19403154,838.17,837.42,1.19072198]
[1766674716775,1.19403154,838.16,837.42,1.19072198]
[1766674717076,1.19403154,838.15,837.42,1.19072198]
[1766674717277,1.19403154,838.14,837.42,1.19072198]
[1766674717477,1.19403154,838.13,837.42,1.19072198]
[1766674717677,1.19403154,838.12,837.42,1.19072198]
[1766674717878,1.19403154,838.11,837.42,1.19072198]
[1766674718078,0.20764776,838.2,837.42,1.19072198]
[1766674718378,1.19403154,838.19,837.42,1.19072198]
[1766674718679,1.19403154,838.18,837.42,1.19072198]
[1766674718882,1.19403154,838.17,837.42,1.19072198]
[1766674719082,1.19403154,838.16,837.42,1.19072198]
[1766674719283,1.19403154,838.15,837.42,1.19072198]
[1766674719484,1.19403154,838.14,837.42,1.19072198]
[1766674719784,1.19403154,838.13,837.42,1.19072198]
[1766674719983,1.19403154,838.12,837.42,1.19072198]
[1766674720184,1.19403154,838.11,837.42,1.19072198]
[1766674720379,0.20764776,838.2,837.42,1.19072198]
[1766674720580,1.19403154,838.19,837.42,1.19072198]
[1766674720780,1.19403154,838.18,837.42,1.19072198]
[1766674720984,1.19403154,838.17,837.42,1.19072198]
[1766674721183,1.19403154,838.16,837.42,1.19072198]
[1766674721483,1.19403154,838.15,837.42,1.19072198]
[1766674721684,1.19403154,838.14,837.42,1.19072198]
[1766674721886,1.19403154,838.13,837.42,1.19072198]
[1766674722182,1.19403154,838.12,837.42,1.19072198]
[1766674722385,1.19403154,838.11,837.42,1.19072198]
[1766674722585,0.20764776,838.2,837.42,1.19072198]
[1766674722787,1.19403052,838.19,837.42,1.19072198]
[1766674723085,1.19403052,838.18,837.42,1.19072198]
[1766674723285,1.19403052,838.17,837.42,1.19072198]
[1766674723485,1.19403052,838.16,837.42,1.19072198]
[1766674723684,1.19403052,838.15,837.42,1.19072198]
[1766674723882,1.19403052,838.14,837.42,1.19072198]
[1766674724088,1.19403052,838.13,837.42,1.19072198]
[1766674724288,1.19403052,838.12,837.42,1.19072198]
[1766674724488,1.19403052,838.11,837.42,1.19072198]
[1766674724688,0.20764776,838.2,837.42,1.19072198]
[1766674724889,1.19403052,838.19,837.42,1.19072198]
[1766674725084,1.19403052,838.18,837.42,1.19072198]
[1766674725289,1.19403052,838.17,837.42,1.19072198]
[1766674725488,1.19403052,838.16,837.42,1.19072198]
[1766674725687,1.19403052,838.15,837.42,1.19072198]
[1766674725887,1.19403052,838.14,837.42,1.19072198]
[1766674726085,1.19403052,838.13,837.42,1.19072198]
[1766674726391,1.19403052,838.12,837.42,1.19072198]
[1766674726585,1.19403052,838.11,837.42,1.19072198]
[1766674726890,0.20764776,838.2,837.42,1.19072198]
[1766674727090,1.19403052,838.19,837.42,1.19072198]
[1766674727287,1.19403052,838.18,837.42,1.19072198]
[1766674727487,1.19403052,838.17,837.42,1.19072198]
[1766674727691,1.19403052,838.16,837.42,1.19072198]
[1766674727894,10.01518421,838.15,837.42,1.19072198]
[1766674728094,1.19403052,838.14,837.42,1.19072198]
[1766674728389,1.19403052,838.13,837.42,1.19072198]
[1766674728690,1.19403052,838.12,837.42,1.19072198]
[1766674728894,1.19403052,838.11,837.42,1.19072198]
[1766674729093,8.82115369,838.15,837.42,1.19072198]
[1766674729288,1.19403052,838.14,837.42,1.19072198]
[1766674729493,1.19403052,838.13,837.42,1.19072198]
[1766674729689,1.19403052,838.12,837.42,1.19072198]
[1766674729891,1.19403052,838.11,837.42,1.19072198]
[1766674730089,8.82115369,838.15,837.42,1.19072198]
[1766674730291,1.19403052,838.14,837.42,1.19072198]
[1766674730594,1.19403052,838.13,837.42,1.19072198]
[1766674730794,1.19403052,838.12,837.42,1.19072198]
[1766674730990,1.19403052,838.11,837.42,1.19072198]
[1766674731191,0.20764776,838.2,837.42,1.19072198]
[1766674731392,1.19403052,838.19,837.42,1.19072198]
[1766674731597,1.19403052,838.18,837.42,1.19072198]
[1766674731894,1.19403052,838.17,837.42,1.19072198]
[1766674732097,1.19403052,838.16,837.42,1.19072198]
[1766674732393,1.19403052,838.15,837.42,1.19072198]
[1766674732696,1.19403052,838.14,837.42,1.19072198]
[1766674732894,1.19403052,838.13,837.42,1.19072198]
[1766674733095,1.19403052,838.12,837.42,1.19072198]
[1766674733397,1.19403052,838.11,837.42,1.19072198]
[1766674733697,0.20764776,838.2,837.42,1.19072198]
[1766674733898,1.19403052,838.19,837.42,1.19072198]
[1766674734193,1.19403052,838.18,837.42,1.19072198]
[1766674734494,1.19403052,838.17,837.42,1.19072198]
[1766674734695,10.25644038,838.16,837.42,1.19072198]
[1766674734894,1.19403052,838.15,837.42,1.19072198]
[1766674735094,1.19403052,838.14,837.42,1.19072198]
[1766674735292,1.19403052,838.13,837.42,1.19072198]
[1766674735496,1.19403052,838.12,837.42,1.19072198]
[1766674735692,1.19403052,838.11,837.42,1.19072198]
[1766674735898,9.06240986,838.16,837.42,1.19072198]
[1766674736096,1.19403052,838.15,837.42,1.19072198]
[1766674736296,1.19403052,838.14,837.42,1.19072198]
[1766674736501,1.19403052,838.13,837.42,1.19072198]
[1766674736702,1.19403052,838.12,837.42,1.19072198]
[1766674736902,1.19403052,838.11,837.42,1.19072198]
[1766674737102,9.06240986,838.16,837.42,1.19072198]
[1766674737303,1.19403052,838.15,837.42,1.19072198]
[1766674737502,1.19403052,838.14,837.42,1.19072198]
[1766674737700,1.19403052,838.13,837.42,1.19072198]
[1766674737899,1.19403052,838.12,837.42,1.19072198]
[1766674738099,1.19403052,838.11,837.42,1.19072198]
[1766674738303,0.20764776,838.2,837.42,1.19072198]
[1766674738501,1.19403052,838.19,837.42,1.19072198]
[1766674738703,1.19403052,838.18,837.42,1.19072198]
[1766674738901,1.19403052,838.17,837.42,1.19072198]
[1766674739199,1.19403052,838.16,837.42,1.19072198]
[1766674739404,1.19403052,838.15,837.42,1.19072198]
[1766674739700,1.19403052,838.14,837.42,1.19072198]
[1766674739902,1.19403052,838.13,837.42,1.19072198]
[1766674740102,1.19403052,838.12,837.42,1.19072198]
[1766674740307,1.19403052,838.11,837.42,1.19072198]
[1766674740507,0.20764776,838.2,837.42,1.19072198]
[1766674740707,1.19403052,838.19,837.42,1.19072198]
[1766674740907,1.19403052,838.18,837.42,1.19072198]
[1766674741107,1.19403052,838.17,837.42,1.19072198]
[1766674741308,1.19403052,838.16,837.42,1.19072198]
[1766674741508,1.19403052,838.15,837.42,1.19072198]
[1766674741709,1.19403052,838.14,837.42,1.19072198]
[1766674742009,1.19403052,838.13,837.42,1.19072198]
[1766674742309,1.19403052,838.12,837.42,1.19072198]
[1766674742509,1.19403052,838.11,837.42,1.19072198]
[1766674742709,0.20764776,838.2,837.42,1.19072198]
[1766674742905,1.19403064,838.19,837.42,1.19072198]
[1766674743106,1.19403064,838.18,837.42,1.19072198]
[1766674743307,1.19403064,838.17,837.42,1.19072198]
[1766674743507,1.19403064,838.16,837.42,1.19072198]
[1766674743705,10.16812936,838.15,837.42,1.19072198]
[1766674743909,1.19403064,838.14,837.42,1.19072198]
[1766674744211,1.19403064,838.13,837.42,1.19072198]
[1766674744508,1.19403064,838.12,837.42,1.19072198]
[1766674744709,1.19403064,838.11,837.42,1.19072198]
[1766674744909,8.97409872,838.15,837.42,1.19072198]
[1766674745110,1.19403064,838.14,837.42,1.19072198]
[1766674745313,1.19403064,838.13,837.42,1.19072198]
[1766674745514,1.19403064,838.12,837.42,1.19072198]
[1766674745713,1.19403064,838.11,837.42,1.19072198]
[1766674745912,8.97409872,838.15,837.42,1.19072198]
[1766674746114,1.19403064,838.14,837.42,1.19072198]
[1766674746314,1.19403064,838.13,837.42,1.19072198]
[1766674746514,1.19403064,838.12,837.42,1.19072198]
[1766674746715,1.19403064,838.11,837.42,1.19072198]
[1766674746916,0.20764776,838.2,837.42,1.19072198]
[1766674747114,1.19403064,838.19,837.42,1.19072198]
[1766674747314,1.19403064,838.18,837.42,1.19072198]
[1766674747515,1.19403064,838.17,837.42,1.19072198]
[1766674747715,1.19403064,838.16,837.42,1.19072198]
[1766674747913,1.19403064,838.15,837.42,1.19072198]
[1766674748113,1.19403064,838.14,837.42,1.19072198]
[1766674748316,1.19403064,838.13,837.42,1.19072198]
[1766674748513,1.19403064,838.12,837.42,1.19072198]
[1766674748718,1.19403064,838.11,837.42,1.19072198]
[1766674749018,0.20764776,838.2,837.42,1.19072198]
[1766674749219,1.19403052,838.19,837.42,1.19072198]
[1766674749514,1.19403052,838.18,837.42,1.19072198]
[1766674749714,1.19403052,838.17,837.42,1.19072198]
[1766674749918,1.19403052,838.16,837.42,1.19072198]
[1766674750214,1.19403052,838.15,837.42,1.19072198]
[1766674750414,1.19403052,838.14,837.42,1.19072198]
[1766674750616,1.19403052,838.13,837.42,1.19072198]
[1766674750815,1.19403052,838.12,837.42,1.19072198]
[1766674751015,1.19403052,838.11,837.42,1.19072198]
[1766674751215,0.20764776,838.2,837.42,1.19072198]
[1766674751416,1.19402958,838.19,837.42,1.19072198]
[1766674751716,1.19402958,838.18,837.42,1.19072198]
[1766674751918,1.19402958,838.17,837.42,1.19072198]
[1766674752116,1.19402958,838.16,837.42,1.19072198]
[1766674752416,1.19402958,838.15,837.42,1.19072198]
[1766674752615,1.19402958,838.14,837.42,1.19072198]
[1766674752818,1.19402958,838.13,837.42,1.19072198]
[1766674753015,1.19402958,838.12,837.42,1.19072198]
[1766674753315,1.19402958,838.11,837.42,1.19072198]
[1766674753515,8.86258102,838.15,837.42,1.19072198]
[1766674753819,1.19402958,838.14,837.42,1.19072198]
[1766674754015,8.86258102,838.15,837.42,1.19072198]
[1766674754016,1.19402958,838.13,837.42,1.19072198]
[1766674754214,1.19402958,838.12,837.42,1.19072198]
[1766674754515,1.19402958,838.11,837.42,1.19072198]
[1766674754715,8.86258102,838.15,837.42,1.19072198]
[1766674754918,1.19402958,838.14,837.42,1.19072198]
[1766674755117,1.19402958,838.13,837.42,1.19072198]
[1766674755316,1.19402958,838.12,837.42,1.19072198]
[1766674755518,1.19402958,838.11,837.42,1.19072198]
[1766674755717,8.86258102,838.15,837.42,1.19072198]
[1766674755915,1.19402958,838.14,837.42,1.19072198]
[1766674756116,1.19402958,838.13,837.42,1.19072198]
[1766674756317,1.19402958,838.12,837.42,1.19072198]
[1766674756521,1.19402958,838.11,837.42,1.19072198]
[1766674756716,0.20764776,838.2,837.42,1.19072198]
[1766674756917,1.19402958,838.19,837.42,1.19072198]
[1766674757122,1.19402958,838.18,837.42,1.19072198]
[1766674757322,1.19402958,838.17,837.42,1.19072198]
[1766674757522,1.19402958,838.16,837.42,1.19072198]
[1766674757724,1.19402958,838.15,837.42,1.19072198]
[1766674758018,1.19402958,838.14,837.42,1.19072198]
[1766674758318,1.19402958,838.13,837.42,1.19072198]
[1766674758521,0.20764776,838.2,837.42,1.19072198]
[1766674758522,1.19402958,838.12,837.42,1.19072198]
[1766674758817,1.19402958,838.11,837.42,1.19072198]
[1766674759021,0.20764776,838.2,837.42,1.19072198]
[1766674759220,1.19402958,838.19,837.42,1.19072198]
[1766674759422,1.19402958,838.18,837.42,1.19072198]
[1766674759624,1.19402958,838.17,837.42,1.19072198]
[1766674759924,1.19402958,838.16,837.42,1.19072198]
[1766674760121,1.19402958,838.15,837.42,1.19072198]
[1766674760420,1.19402958,838.14,837.42,1.19072198]
[1766674760624,1.19402958,838.13,837.42,1.19072198]
[1766674760824,1.19402958,838.12,837.42,1.19072198]
[1766674761025,1.19402958,838.11,837.42,1.19072198]
[1766674761222,8.95922651,838.11,837.42,1.19072198]
[1766674762628,8.95922651,838.11,837.27,1.78608297]
[1766674763226,8.95922651,838.11,836.67,2.97680495]
[1766674763427,8.95922651,838.11,837.42,1.19135671]
[1766674764624,0.20764776,838.2,837.42,1.19135671]
[1766674764924,1.19402958,838.19,837.42,1.19135671]
[1766674765227,1.19402958,838.18,837.42,1.19135671]
[1766674765423,1.19402958,838.17,837.42,1.19135671]
[1766674765627,1.19402958,838.16,837.42,1.19135671]
[1766674765825,1.19402958,838.15,837.42,1.19135671]
[1766674766024,1.19402958,838.14,837.42,1.19135671]
[1766674766229,1.19402958,838.13,837.42,1.19135671]
[1766674766528,1.19402958,838.12,837.42,1.19135671]
[1766674766828,1.19402958,838.11,837.42,1.19135671]
[1766674767027,0.20764776,838.2,837.42,1.19135671]
[1766674767227,1.19402958,838.19,837.42,1.19135671]
[1766674767426,1.19402958,838.18,837.42,1.19135671]
[1766674767626,1.19402958,838.17,837.42,1.19135671]
[1766674767830,1.19402958,838.16,837.42,1.19135671]
[1766674768030,1.19402958,838.15,837.42,1.19135671]
[1766674768329,1.19402958,838.14,837.42,1.19135671]
[1766674768530,1.19402958,838.13,837.42,1.19135671]
[1766674768729,1.19402958,838.12,837.42,1.19135671]
[1766674768930,1.19402958,838.11,837.42,1.19135671]
[1766674769126,0.20764776,838.2,837.42,1.19135671]
[1766674769327,1.19402958,838.19,837.42,1.19135671]
[1766674769527,1.19402958,838.18,837.42,1.19135671]
[1766674769730,1.19402958,838.17,837.42,1.19135671]
[1766674769931,0.20764776,838.2,837.42,1.19135671]
[1766674769932,1.19402958,838.16,837.42,1.19135671]
[1766674770128,1.19402958,838.15,837.42,1.19135671]
[1766674770333,1.19402958,838.14,837.42,1.19135671]
[1766674770534,1.19402958,838.13,837.42,1.19135671]
[1766674770732,1.19402958,838.12,837.42,1.19135671]
[1766674770930,1.19402958,838.11,837.42,1.19135671]
[1766674771230,0.20764776,838.2,837.42,1.19135671]
[1766674771529,1.19402958,838.19,837.42,1.19135671]
[1766674771730,1.19402958,838.18,837.42,1.19135671]
[1766674771929,1.19402958,838.17,837.42,1.19135671]
[1766674772230,1.19402958,838.16,837.42,1.19135671]
[1766674772433,1.19402958,838.15,837.42,1.19135671]
[1766674772633,1.19402958,838.14,837.42,1.19135671]
[1766674772832,1.19402958,838.13,837.42,1.19135671]
[1766674773035,1.19402958,838.12,837.42,1.19135671]
[1766674773236,1.19402958,838.11,837.42,1.19135671]
[1766674773436,0.20764776,838.2,837.42,1.19135671]
[1766674773638,1.19402958,838.19,837.42,1.19135671]
[1766674773833,1.19402958,838.18,837.42,1.19135671]
[1766674774033,1.19402958,838.17,837.42,1.19135671]
[1766674774234,1.19402958,838.16,837.42,1.19135671]
[1766674774537,1.19402958,838.15,837.42,1.19135671]
[1766674774738,1.19402958,838.14,837.42,1.19135671]
[1766674775033,1.19402958,838.13,837.42,1.19135671]
[1766674775233,1.19402958,838.12,837.42,1.19135671]
[1766674775537,1.19402958,838.11,837.42,1.19135671]
[1766674775833,0.20764776,838.2,837.42,1.19135671]
[1766674776033,1.1940297,838.19,837.42,1.19135671]
[1766674776238,1.1940297,838.18,837.42,1.19135671]
[1766674776433,1.1940297,838.17,837.42,1.19135671]
[1766674776638,1.1940297,838.16,837.42,1.19135671]
[1766674776835,10.27998254,838.15,837.42,1.19135671]
[1766674777038,1.1940297,838.14,837.42,1.19135671]
[1766674777236,1.1940297,838.13,837.42,1.19135671]
[1766674777439,1.1940297,838.12,837.42,1.19135671]
[1766674777739,1.1940297,838.11,837.42,1.19135671]
[1766674777939,1.19405477,838.1,837.4,1.19135671]
[1766674778139,1.19405477,838.09,837.4,1.19135671]
[1766674778338,9.08595284,838.15,837.4,1.19135671]
[1766674778535,1.19405477,838.14,837.4,1.19135671]
[1766674778738,1.19405477,838.13,837.4,1.19135671]
[1766674779038,9.08595284,838.15,837.4,1.19135671]
[1766674779039,1.19405477,838.12,837.4,1.19135671]
[1766674779237,1.19405477,838.11,837.4,1.19135671]
[1766674779437,1.19405477,838.1,837.4,1.19135671]
[1766674779641,1.19405477,838.09,837.4,1.19135671]
[1766674779941,9.08595284,838.15,837.4,1.19135671]
[1766674780138,1.19405489,838.14,837.4,1.19135671]
[1766674780336,1.19405489,838.13,837.4,1.19135671]
[1766674780639,1.19405489,838.12,837.4,1.19135671]
[1766674780941,1.19405489,838.11,837.4,1.19135671]
[1766674781139,1.19405489,838.1,837.4,1.19135671]
[1766674781337,1.19405489,838.09,837.4,1.19135671]
[1766674781539,0.20764776,838.2,837.4,1.19135671]
[1766674781739,1.19405404,838.19,837.4,1.19135671]
[1766674781942,1.19405404,838.18,837.4,1.19135671]
[1766674782139,1.19405404,838.17,837.4,1.19135671]
[1766674782339,1.19405404,838.16,837.4,1.19135671]
[1766674782538,1.19405404,838.15,837.4,1.19135671]
[1766674782742,1.19405404,838.14,837.4,1.19135671]
[1766674782939,1.19405404,838.13,837.4,1.19135671]
[1766674783144,1.19405404,838.12,837.4,1.19135671]
[1766674783343,1.19405404,838.11,837.4,1.19135671]
[1766674783640,1.19405404,838.1,837.4,1.19135671]
[1766674783844,0.20764776,838.2,837.4,1.19135671]
[1766674784045,1.19405404,838.19,837.4,1.19135671]
[1766674784240,1.19405404,838.18,837.4,1.19135671]
[1766674784441,1.19405404,838.17,837.4,1.19135671]
[1766674784640,1.19405404,838.16,837.4,1.19135671]
[1766674784840,1.19405404,838.15,837.4,1.19135671]
[1766674785042,1.19405404,838.14,837.4,1.19135671]
[1766674785244,1.19405404,838.13,837.4,1.19135671]
[1766674785540,1.19405404,838.12,837.4,1.19135671]
[1766674785741,1.19405404,838.11,837.4,1.19135671]
[1766674785939,1.19405404,838.1,837.4,1.19135671]
[1766674786139,0.20764776,838.2,837.4,1.19135671]
[1766674786344,1.19405404,838.19,837.4,1.19135671]
[1766674786640,1.19405404,838.18,837.4,1.19135671]
[1766674786841,1.19405404,838.17,837.4,1.19135671]
[1766674787043,1.19405404,838.16,837.4,1.19135671]
[1766674787343,1.19405404,838.15,837.4,1.19135671]
[1766674787543,1.19405404,838.14,837.4,1.19135671]
[1766674787744,1.19405404,838.13,837.4,1.19135671]
[1766674787939,1.19405404,838.12,837.4,1.19135671]
[1766674788142,1.19405404,838.11,837.4,1.19135671]
[1766674788446,1.19405404,838.1,837.39,1.19135671]
[1766674788742,0.20764776,838.2,837.39,1.19135671]
[1766674788942,1.19405416,838.19,837.39,1.19135671]
[1766674789246,1.19405416,838.18,837.39,1.19135671]
[1766674789447,1.19405416,838.17,837.39,1.19135671]
[1766674789647,1.19405416,838.16,837.39,1.19135671]
[1766674789849,1.19405416,838.15,837.39,1.19135671]
[1766674790147,1.19405416,838.14,837.39,1.19135671]
[1766674790348,1.19405416,838.13,837.39,1.19135671]
[1766674790642,1.19405416,838.12,837.39,1.19135671]
[1766674790844,1.19405416,838.11,837.39,1.19135671]
[1766674791044,1.19405416,838.1,837.39,1.19135671]
[1766674791343,9.12719721,838.15,837.39,1.19135671]
[1766674791548,1.19405416,838.14,837.39,1.19135671]
[1766674791747,1.19405416,838.13,837.39,1.19135671]
[1766674791949,1.19405416,838.12,837.39,1.19135671]
[1766674792149,1.19405416,838.11,837.39,1.19135671]
[1766674792345,1.19405416,838.1,837.39,1.19135671]
[1766674792546,9.12719721,838.15,837.39,1.19135671]
[1766674792749,1.19405393,838.14,837.39,1.19135671]
[1766674793051,1.19405393,838.13,837.39,1.19135671]
[1766674793251,1.19405393,838.12,837.39,1.19135671]
[1766674793449,1.19405393,838.11,837.39,1.19135671]
[1766674793650,1.19405393,838.1,837.39,1.19135671]
[1766674793853,0.20764776,838.2,837.39,1.19135671]
[1766674794055,1.19405393,838.19,837.39,1.19135671]
[1766674794250,1.19405393,838.18,837.39,1.19135671]
[1766674794450,1.19405393,838.17,837.39,1.19135671]
[1766674794752,1.19405393,838.16,837.39,1.19135671]
[1766674794949,1.19405393,838.15,837.39,1.19135671]
[1766674795148,1.19405393,838.14,837.39,1.19135671]
[1766674795350,1.19405393,838.13,837.39,1.19135671]
[1766674795553,1.19405393,838.12,837.39,1.19135671]
[1766674795751,1.19405393,838.11,837.39,1.19135671]
[1766674795951,1.19405393,838.1,837.39,1.19135671]
[1766674796149,0.20764776,838.2,837.39,1.19135671]